Department Family,Entity,Date,Expense Type,Expense Area,Supplier,SME,Transaction Number,Amount,Description,Expenditure Type
HM Land Registry,HM Land Registry,07/07/2017,Computer Equipment Maintenance,IS Service Delivery,"BMC Software Distribution, BV",Large,1186049,"2,529,773.83",Computer Equipment Maintenance,Administration
HM Land Registry,HM Land Registry,31/07/2017,Consultancy Non-IT Advice Only,Dir: (Statutory) Digital Services,Bridge House Consulting Ltd,Large,1187512,"27,100.00",Consultancy Non-IT Advice Only,Administration
HM Land Registry,HM Land Registry,17/07/2017,Facilities - Quoted & Ad Hoc Works,Birkenhead Office,Carillion Services Ltd,Large,1186726,437.7,Facilities - Quoted & Ad Hoc Works,Administration
HM Land Registry,HM Land Registry,17/07/2017,Security Expenses,Birkenhead Office,Carillion Services Ltd,Large,1186726,96.11,Security Expenses,Administration
HM Land Registry,HM Land Registry,17/07/2017,Facilities - Quoted & Ad Hoc Works,Central Facilities Management Team,Carillion Services Ltd,Large,1186726,"2,889.00",Facilities - Quoted & Ad Hoc Works,Administration
HM Land Registry,HM Land Registry,17/07/2017,Security Expenses,Central Facilities Management Team,Carillion Services Ltd,Large,1186726,"7,324.08",Security Expenses,Administration
HM Land Registry,HM Land Registry,17/07/2017,"FF&F:Purchases <1,000",Coventry Office,Carillion Services Ltd,Large,1186726,"1,887.14","Furniture, Fixtures & Fittings: Purchases less than 1,000.00",Administration
HM Land Registry,HM Land Registry,17/07/2017,Facilities - Quoted & Ad Hoc Works,Croydon Office,Carillion Services Ltd,Large,1186726,"5,052.01",Facilities - Quoted & Ad Hoc Works,Administration
HM Land Registry,HM Land Registry,17/07/2017,"FF&F:Purchases <1,000",Croydon Office,Carillion Services Ltd,Large,1186726,789.51,"Furniture, Fixtures & Fittings: Purchases less than 1,000.00",Administration
HM Land Registry,HM Land Registry,17/07/2017,Facilities - Quoted & Ad Hoc Works,Director of Information Systems,Carillion Services Ltd,Large,1186726,"10,523.15",Facilities - Quoted & Ad Hoc Works,Administration
HM Land Registry,HM Land Registry,17/07/2017,Grounds Maintenance,Director of Information Systems,Carillion Services Ltd,Large,1186726,"1,386.83",Grounds Maintenance,Administration
HM Land Registry,HM Land Registry,17/07/2017,Facilities - Quoted & Ad Hoc Works,Durham Office,Carillion Services Ltd,Large,1186726,"16,846.71",Facilities - Quoted & Ad Hoc Works,Administration
HM Land Registry,HM Land Registry,17/07/2017,Waste Disposal,Durham Office,Carillion Services Ltd,Large,1186726,458.52,Waste Disposal,Administration
HM Land Registry,HM Land Registry,17/07/2017,"FF&F:Purchases <1,000",Durham Office,Carillion Services Ltd,Large,1186726,"3,857.77","Furniture, Fixtures & Fittings: Purchases less than 1,000.00",Administration
HM Land Registry,HM Land Registry,17/07/2017,Marketing Services,Durham Office,Carillion Services Ltd,Large,1186726,918.33,Marketing Services,Administration
HM Land Registry,HM Land Registry,17/07/2017,Facilities - Quoted & Ad Hoc Works,Fylde Office,Carillion Services Ltd,Large,1186726,"35,450.66",Facilities - Quoted & Ad Hoc Works,Administration
HM Land Registry,HM Land Registry,17/07/2017,Security Expenses,Fylde Office,Carillion Services Ltd,Large,1186726,106.79,Security Expenses,Administration
HM Land Registry,HM Land Registry,17/07/2017,Waste Disposal,Fylde Office,Carillion Services Ltd,Large,1186726,667.11,Waste Disposal,Administration
HM Land Registry,HM Land Registry,17/07/2017,"FF&F:Purchases <1,000",Fylde Office,Carillion Services Ltd,Large,1186726,"1,609.68","Furniture, Fixtures & Fittings: Purchases less than 1,000.00",Administration
HM Land Registry,HM Land Registry,17/07/2017,Facilities - Quoted & Ad Hoc Works,Gloucester Computer Centre,Carillion Services Ltd,Large,1186726,"1,845.59",Facilities - Quoted & Ad Hoc Works,Administration
HM Land Registry,HM Land Registry,17/07/2017,Facilities - Quoted & Ad Hoc Works,Gloucester Office,Carillion Services Ltd,Large,1186726,"2,568.00",Facilities - Quoted & Ad Hoc Works,Administration
HM Land Registry,HM Land Registry,17/07/2017,Waste Disposal,Gloucester Office,Carillion Services Ltd,Large,1186726,244.48,Waste Disposal,Administration
HM Land Registry,HM Land Registry,17/07/2017,Facilities - Quoted & Ad Hoc Works,Hull Office,Carillion Services Ltd,Large,1186726,"6,332.34",Facilities - Quoted & Ad Hoc Works,Administration
HM Land Registry,HM Land Registry,17/07/2017,Office Cleaning Expenses,Hull Office,Carillion Services Ltd,Large,1186726,49.88,Office Cleaning Expenses,Administration
HM Land Registry,HM Land Registry,17/07/2017,Security Expenses,Hull Office,Carillion Services Ltd,Large,1186726,302.05,Security Expenses,Administration
HM Land Registry,HM Land Registry,17/07/2017,Waste Disposal,Hull Office,Carillion Services Ltd,Large,1186726,"2,675.33",Waste Disposal,Administration
HM Land Registry,HM Land Registry,17/07/2017,"FF&F:Purchases <1,000",Hull Office,Carillion Services Ltd,Large,1186726,828.12,"Furniture, Fixtures & Fittings: Purchases less than 1,000.00",Administration
HM Land Registry,HM Land Registry,17/07/2017,FF&F:Removals,Hull Office,Carillion Services Ltd,Large,1186726,421.58,"Furniture, Fixtures & Fittings: Removals",Administration
HM Land Registry,HM Land Registry,17/07/2017,Facilities - Quoted & Ad Hoc Works,Leicester Office,Carillion Services Ltd,Large,1186726,"19,931.16",Facilities - Quoted & Ad Hoc Works,Administration
HM Land Registry,HM Land Registry,17/07/2017,Grounds Maintenance,Leicester Office,Carillion Services Ltd,Large,1186726,306.02,Grounds Maintenance,Administration
HM Land Registry,HM Land Registry,17/07/2017,Security Expenses,Leicester Office,Carillion Services Ltd,Large,1186726,85.43,Security Expenses,Administration
HM Land Registry,HM Land Registry,17/07/2017,Facilities - Quoted & Ad Hoc Works,Nottingham Office,Carillion Services Ltd,Large,1186726,"10,323.39",Facilities - Quoted & Ad Hoc Works,Administration
HM Land Registry,HM Land Registry,17/07/2017,"FF&F:Purchases <1,000",Nottingham Office,Carillion Services Ltd,Large,1186726,"1,678.64","Furniture, Fixtures & Fittings: Purchases less than 1,000.00",Administration
HM Land Registry,HM Land Registry,17/07/2017,Facilities - Quoted & Ad Hoc Works,Peterborough Office,Carillion Services Ltd,Large,1186726,"5,326.99",Facilities - Quoted & Ad Hoc Works,Administration
HM Land Registry,HM Land Registry,17/07/2017,Facilities - Quoted & Ad Hoc Works,Plymouth Office,Carillion Services Ltd,Large,1186726,"8,356.69",Facilities - Quoted & Ad Hoc Works,Administration
HM Land Registry,HM Land Registry,17/07/2017,Office Cleaning Expenses,Plymouth Office,Carillion Services Ltd,Large,1186726,30.69,Office Cleaning Expenses,Administration
HM Land Registry,HM Land Registry,17/07/2017,Waste Disposal,Plymouth Office,Carillion Services Ltd,Large,1186726,"1,590.15",Waste Disposal,Administration
HM Land Registry,HM Land Registry,17/07/2017,"FF&F:Purchases <1,000",Plymouth Office,Carillion Services Ltd,Large,1186726,"2,292.67","Furniture, Fixtures & Fittings: Purchases less than 1,000.00",Administration
HM Land Registry,HM Land Registry,17/07/2017,Household Expenses Services,Plymouth Office,Carillion Services Ltd,Large,1186726,355.53,Household Expenses Services,Administration
HM Land Registry,HM Land Registry,17/07/2017,Facilities - Quoted & Ad Hoc Works,Telford Office,Carillion Services Ltd,Large,1186726,"5,575.34",Facilities - Quoted & Ad Hoc Works,Administration
HM Land Registry,HM Land Registry,17/07/2017,"FF&F:Purchases <1,000",Telford Office,Carillion Services Ltd,Large,1186726,760.52,"Furniture, Fixtures & Fittings: Purchases less than 1,000.00",Administration
HM Land Registry,HM Land Registry,17/07/2017,Facilities - Quoted & Ad Hoc Works,Wales Office,Carillion Services Ltd,Large,1186726,"29,337.93",Facilities - Quoted & Ad Hoc Works,Administration
HM Land Registry,HM Land Registry,17/07/2017,Waste Disposal,Wales Office,Carillion Services Ltd,Large,1186726,473.66,Waste Disposal,Administration
HM Land Registry,HM Land Registry,17/07/2017,"FF&F:Purchases <1,000",Wales Office,Carillion Services Ltd,Large,1186726,42.75,"Furniture, Fixtures & Fittings: Purchases less than 1,000.00",Administration
HM Land Registry,HM Land Registry,17/07/2017,Facilities - Quoted & Ad Hoc Works,Weymouth Office,Carillion Services Ltd,Large,1186726,"8,513.56",Facilities - Quoted & Ad Hoc Works,Administration
HM Land Registry,HM Land Registry,17/07/2017,Waste Disposal,Weymouth Office,Carillion Services Ltd,Large,1186726,185.57,Waste Disposal,Administration
HM Land Registry,HM Land Registry,17/07/2017,"FF&F:Purchases <1,000",Weymouth Office,Carillion Services Ltd,Large,1186726,625.62,"Furniture, Fixtures & Fittings: Purchases less than 1,000.00",Administration
HM Land Registry,HM Land Registry,17/07/2017,Electricity,Birkenhead Office,Carillion Services Ltd,Large,1186725,"4,713.76",Electricity,Administration
HM Land Registry,HM Land Registry,17/07/2017,Gas,Birkenhead Office,Carillion Services Ltd,Large,1186725,"1,243.28",Gas,Administration
HM Land Registry,HM Land Registry,17/07/2017,Electricity,Croydon Office,Carillion Services Ltd,Large,1186725,"7,973.73",Electricity,Administration
HM Land Registry,HM Land Registry,17/07/2017,Gas,Croydon Office,Carillion Services Ltd,Large,1186725,"1,611.34",Gas,Administration
HM Land Registry,HM Land Registry,17/07/2017,Electricity,Director of Information Systems,Carillion Services Ltd,Large,1186725,"51,149.70",Electricity,Administration
HM Land Registry,HM Land Registry,17/07/2017,Gas,Director of Information Systems,Carillion Services Ltd,Large,1186725,"5,992.62",Gas,Administration
HM Land Registry,HM Land Registry,17/07/2017,Water,Director of Information Systems,Carillion Services Ltd,Large,1186725,"7,797.82",Water,Administration
HM Land Registry,HM Land Registry,17/07/2017,Electricity,Durham Office,Carillion Services Ltd,Large,1186725,"4,558.06",Electricity,Administration
HM Land Registry,HM Land Registry,17/07/2017,Gas,Durham Office,Carillion Services Ltd,Large,1186725,"2,248.24",Gas,Administration
HM Land Registry,HM Land Registry,17/07/2017,Electricity,Fylde Office,Carillion Services Ltd,Large,1186725,"3,751.36",Electricity,Administration
HM Land Registry,HM Land Registry,17/07/2017,Gas,Fylde Office,Carillion Services Ltd,Large,1186725,"3,006.80",Gas,Administration
HM Land Registry,HM Land Registry,17/07/2017,Electricity,Gloucester Computer Centre,Carillion Services Ltd,Large,1186725,"31,825.76",Electricity,Administration
HM Land Registry,HM Land Registry,17/07/2017,Gas,Gloucester Computer Centre,Carillion Services Ltd,Large,1186725,"1,377.14",Gas,Administration
HM Land Registry,HM Land Registry,17/07/2017,Electricity,Gloucester Office,Carillion Services Ltd,Large,1186725,"5,070.84",Electricity,Administration
HM Land Registry,HM Land Registry,17/07/2017,Gas,Gloucester Office,Carillion Services Ltd,Large,1186725,"1,060.80",Gas,Administration
HM Land Registry,HM Land Registry,17/07/2017,Electricity,Hull Office,Carillion Services Ltd,Large,1186725,"5,993.68",Electricity,Administration
HM Land Registry,HM Land Registry,17/07/2017,Gas,Hull Office,Carillion Services Ltd,Large,1186725,"3,646.96",Gas,Administration
HM Land Registry,HM Land Registry,17/07/2017,Water,Hull Office,Carillion Services Ltd,Large,1186725,"1,407.50",Water,Administration
HM Land Registry,HM Land Registry,17/07/2017,Electricity,Leicester Office,Carillion Services Ltd,Large,1186725,"3,222.88",Electricity,Administration
HM Land Registry,HM Land Registry,17/07/2017,Gas,Leicester Office,Carillion Services Ltd,Large,1186725,"1,013.61",Gas,Administration
HM Land Registry,HM Land Registry,17/07/2017,Electricity,Nottingham Office,Carillion Services Ltd,Large,1186725,"6,494.86",Electricity,Administration
HM Land Registry,HM Land Registry,17/07/2017,Gas,Nottingham Office,Carillion Services Ltd,Large,1186725,368.19,Gas,Administration
HM Land Registry,HM Land Registry,17/07/2017,Electricity,Telford Office,Carillion Services Ltd,Large,1186725,"4,783.99",Electricity,Administration
HM Land Registry,HM Land Registry,17/07/2017,Gas,Telford Office,Carillion Services Ltd,Large,1186725,995.63,Gas,Administration
HM Land Registry,HM Land Registry,17/07/2017,Electricity,Wales Office,Carillion Services Ltd,Large,1186725,"4,644.66",Electricity,Administration
HM Land Registry,HM Land Registry,17/07/2017,Gas,Wales Office,Carillion Services Ltd,Large,1186725,"2,210.76",Gas,Administration
HM Land Registry,HM Land Registry,17/07/2017,Electricity,Weymouth Office,Carillion Services Ltd,Large,1186725,"5,025.64",Electricity,Administration
HM Land Registry,HM Land Registry,17/07/2017,Gas,Weymouth Office,Carillion Services Ltd,Large,1186725,"2,287.92",Gas,Administration
HM Land Registry,HM Land Registry,10/07/2017,Consultancy Non-IT Implement,Dir: Finance,CGI IT UK Limited,Large,1186119,"39,384.71",Consultancy Non-IT Implement,Administration
HM Land Registry,HM Land Registry,26/07/2017,Computer Equipment Maintenance,IS Service Delivery,CGI IT UK Limited,Large,1185757,"61,500.00",Computer Equipment Maintenance,Administration
HM Land Registry,HM Land Registry,27/07/2017,Rates Payable,Wales Office,City & County of Swansea,Large,1176720,"22,580.00",Rates Payable,Administration
HM Land Registry,HM Land Registry,12/07/2017,Professional Services,Dir: Information Systems,Convergent Network Solutions Ltd,Large,1186314,"29,580.00",Professional Services,Administration
HM Land Registry,HM Land Registry,31/07/2017,Rates Payable,Croydon Office,Croydon Council,Large,1176376,"40,419.00",Rates Payable,Administration
HM Land Registry,HM Land Registry,06/07/2017,Fixed Asset Interface Account,Balance Sheet,Dell Corporation Ltd,Large,1185930,"50,652.89",Fixed Assets,Administration
HM Land Registry,HM Land Registry,27/07/2017,Rates Payable,Durham Office,Durham County Council,Large,1176070,"28,213.00",Rates Payable,Administration
HM Land Registry,HM Land Registry,05/07/2017,Hays Document Exchange (DX),Central Facilities Management Team,DX Network Services Ltd,Large,1187337,"137,033.51",Hays Document Exchange,Administration
HM Land Registry,HM Land Registry,04/07/2017,Computer Equipment Non HP Licences,IS Service Delivery,Elasticsearch Ltd,Large,1185668,"25,200.00",Computer Equipment Non HP Licences,Administration
HM Land Registry,HM Land Registry,19/07/2017,Professional Services,Dir: (Statutory) Digital Services,Ernst & Young LLP,Large,1186445,"352,836.83",Professional Services,Administration
HM Land Registry,HM Land Registry,27/07/2017,Rates Payable,Fylde Office,Fylde Borough Council,Large,1175982,"17,124.00",Rates Payable,Administration
HM Land Registry,HM Land Registry,27/07/2017,Rates Payable,Gloucester Office,Gloucester City Council,Large,1175823,"28,980.00",Rates Payable,Administration
HM Land Registry,HM Land Registry,05/07/2017,Independent Adjudicators's Office Costs,Independent Adjudicator,HM Courts & Tribunals Service,Large,1185717,"702,300.00",Independent Adjudicators's Office Costs,Administration
HM Land Registry,HM Land Registry,05/07/2017,Computer Equipment Maintenance,IS Service Delivery,IBM United Kingdom Ltd,Large,1185670,"107,611.48",Computer Equipment Maintenance,Administration
HM Land Registry,HM Land Registry,11/07/2017,Professional Services,Program: Local Land Charges,Kainos Software Ltd,Large,1186226,"339,379.63",Professional Services,Administration
HM Land Registry,HM Land Registry,10/07/2017,Rates Payable,Hull Office,Kingston Upon Hull City Council,Large,1176171,"12,878.00",Rates Payable,Administration
HM Land Registry,HM Land Registry,27/07/2017,Rates Payable,Leicester Office,Leicester City Council,Large,1176378,"24,710.50",Rates Payable,Administration
HM Land Registry,HM Land Registry,17/07/2017,Computer Equipment Maintenance,IS Service Delivery,MCSA Group Limited,Large,1186450,"52,376.45",Computer Equipment Maintenance,Administration
HM Land Registry,HM Land Registry,11/07/2017,Data Network Lines,IS Service Delivery,MLL Telecom Ltd,Large,1186058,"59,492.67",Data Network Lines,Administration
HM Land Registry,HM Land Registry,27/07/2017,Rates Payable,Nottingham Office,Nottingham City Council,Large,1176596,"26,585.00",Rates Payable,Administration
HM Land Registry,HM Land Registry,27/07/2017,Ordnance Survey Surveys,Central Operations Group,Ordnance Survey,Large,1187600,"807,223.00",Ordnance Survey Surveys,Administration
HM Land Registry,HM Land Registry,27/07/2017,Rates Payable,Peterborough Office,Peterborough City Council,Large,1176069,"10,690.00",Rates Payable,Administration
HM Land Registry,HM Land Registry,27/07/2017,Rates Payable,Director of Information Systems,Plymouth City Council,Large,1176173,"36,385.00",Rates Payable,Administration
HM Land Registry,HM Land Registry,05/07/2017,Travel & Subsistence General Duty,Business Development,Redfern Travel Ltd,SME,1185870,-482.95,Travel & Subsistence,Administration
HM Land Registry,HM Land Registry,05/07/2017,Travel & Subsistence General Duty,Central Facilities Management Team,Redfern Travel Ltd,SME,1185870,881.8,Travel & Subsistence,Administration
HM Land Registry,HM Land Registry,05/07/2017,Travel & Subsistence General Duty,Central Operations Group,Redfern Travel Ltd,SME,1185870,229.19,Travel & Subsistence,Administration
HM Land Registry,HM Land Registry,05/07/2017,Travel & Subsistence General Duty,Chief Executives Office,Redfern Travel Ltd,SME,1185870,582.99,Travel & Subsistence,Administration
HM Land Registry,HM Land Registry,05/07/2017,Travel & Subsistence General Duty,Commercial Director,Redfern Travel Ltd,SME,1185870,888.33,Travel & Subsistence,Administration
HM Land Registry,HM Land Registry,05/07/2017,Travel & Subsistence General Duty,Corp Procurement,Redfern Travel Ltd,SME,1185870,451.08,Travel & Subsistence,Administration
HM Land Registry,HM Land Registry,05/07/2017,Travel & Subsistence Dual Workplace,Corp Procurement,Redfern Travel Ltd,SME,1185870,228.2,Travel & Subsistence,Administration
HM Land Registry,HM Land Registry,05/07/2017,Travel & Subsistence General Duty,Corporate Legal Services,Redfern Travel Ltd,SME,1185870,770.68,Travel & Subsistence,Administration
HM Land Registry,HM Land Registry,05/07/2017,Travel & Subsistence Dual Workplace,Corporate Legal Services,Redfern Travel Ltd,SME,1185870,127.1,Travel & Subsistence,Administration
HM Land Registry,HM Land Registry,05/07/2017,Travel & Subsistence General Duty,Croydon Office,Redfern Travel Ltd,SME,1185870,120.1,Travel & Subsistence,Administration
HM Land Registry,HM Land Registry,05/07/2017,Travel & Subsistence General Duty,Data Group,Redfern Travel Ltd,SME,1185870,"1,497.80",Travel & Subsistence,Administration
HM Land Registry,HM Land Registry,05/07/2017,Travel & Subsistence General Duty,Dir: (Statutory) Digital Services,Redfern Travel Ltd,SME,1185870,"1,327.60",Travel & Subsistence,Administration
HM Land Registry,HM Land Registry,05/07/2017,Travel & Subsistence General Duty,Dir: Operations,Redfern Travel Ltd,SME,1185870,709.75,Travel & Subsistence,Administration
HM Land Registry,HM Land Registry,05/07/2017,Travel & Subsistence General Duty,Director of Information Systems,Redfern Travel Ltd,SME,1185870,"3,999.30",Travel & Subsistence,Administration
HM Land Registry,HM Land Registry,05/07/2017,Travel & Subsistence General Duty,Director of Legal Services,Redfern Travel Ltd,SME,1185870,683.7,Travel & Subsistence,Administration
HM Land Registry,HM Land Registry,05/07/2017,Travel & Subsistence General Duty,Director of Operations,Redfern Travel Ltd,SME,1185870,240.5,Travel & Subsistence,Administration
HM Land Registry,HM Land Registry,05/07/2017,Travel & Subsistence General Duty,Durham Office,Redfern Travel Ltd,SME,1185870,452.88,Travel & Subsistence,Administration
HM Land Registry,HM Land Registry,05/07/2017,Travel & Subsistence General Duty,Finance Director,Redfern Travel Ltd,SME,1185870,170.2,Travel & Subsistence,Administration
HM Land Registry,HM Land Registry,05/07/2017,Travel & Subsistence General Duty,Finance Group,Redfern Travel Ltd,SME,1185870,623.66,Travel & Subsistence,Administration
HM Land Registry,HM Land Registry,05/07/2017,Travel & Subsistence General Duty,Guarantee & Litigation,Redfern Travel Ltd,SME,1185870,-66.3,Travel & Subsistence,Administration
HM Land Registry,HM Land Registry,05/07/2017,Travel & Subsistence General Duty,HR Group,Redfern Travel Ltd,SME,1185870,"3,955.45",Travel & Subsistence,Administration
HM Land Registry,HM Land Registry,05/07/2017,Travel & Subsistence Overseas Travel,HR Group,Redfern Travel Ltd,SME,1185870,139,Travel & Subsistence,Administration
HM Land Registry,HM Land Registry,05/07/2017,Travel & Subsistence General Duty,Hull Office,Redfern Travel Ltd,SME,1185870,283.9,Travel & Subsistence,Administration
HM Land Registry,HM Land Registry,05/07/2017,Travel & Subsistence General Duty,Leicester Office,Redfern Travel Ltd,SME,1185870,44.9,Travel & Subsistence,Administration
HM Land Registry,HM Land Registry,05/07/2017,Travel & Subsistence General Duty,Local Land Charges,Redfern Travel Ltd,SME,1185870,"4,016.35",Travel & Subsistence,Administration
HM Land Registry,HM Land Registry,05/07/2017,Travel & Subsistence General Duty,Local Lawyer Group,Redfern Travel Ltd,SME,1185870,297.9,Travel & Subsistence,Administration
HM Land Registry,HM Land Registry,05/07/2017,Travel & Subsistence General Duty,Marketing Services Team,Redfern Travel Ltd,SME,1185870,270.8,Travel & Subsistence,Administration
HM Land Registry,HM Land Registry,05/07/2017,Travel & Subsistence General Duty,Nottingham Office,Redfern Travel Ltd,SME,1185870,160.6,Travel & Subsistence,Administration
HM Land Registry,HM Land Registry,05/07/2017,Travel & Subsistence General Duty,Product Development & Management,Redfern Travel Ltd,SME,1185870,"2,288.89",Travel & Subsistence,Administration
HM Land Registry,HM Land Registry,05/07/2017,Travel & Subsistence General Duty,Program: Local Land Charges,Redfern Travel Ltd,SME,1185870,"1,485.87",Travel & Subsistence,Administration
HM Land Registry,HM Land Registry,05/07/2017,Travel & Subsistence General Duty,Projects and Programme Centre,Redfern Travel Ltd,SME,1185870,388.7,Travel & Subsistence,Administration
HM Land Registry,HM Land Registry,05/07/2017,Travel & Subsistence General Duty,Property Asset Management Group,Redfern Travel Ltd,SME,1185870,-19.8,Travel & Subsistence,Administration
HM Land Registry,HM Land Registry,05/07/2017,Travel & Subsistence General Duty,Research & Data Mining,Redfern Travel Ltd,SME,1185870,307.83,Travel & Subsistence,Administration
HM Land Registry,HM Land Registry,05/07/2017,Travel & Subsistence General Duty,Strategy Team,Redfern Travel Ltd,SME,1185870,459.3,Travel & Subsistence,Administration
HM Land Registry,HM Land Registry,05/07/2017,Travel & Subsistence General Duty,Telford Office,Redfern Travel Ltd,SME,1185870,11.1,Travel & Subsistence,Administration
HM Land Registry,HM Land Registry,05/07/2017,Travel & Subsistence General Duty,Wales Office,Redfern Travel Ltd,SME,1185870,89.5,Travel & Subsistence,Administration
HM Land Registry,HM Land Registry,05/07/2017,Travel & Subsistence General Duty,Dir: Finance,Redfern Travel Ltd,SME,1185870,"1,334.52",Travel & Subsistence,Administration
HM Land Registry,HM Land Registry,05/07/2017,Travel & Subsistence General Duty,Independent Complaints Reviewer,Redfern Travel Ltd,SME,1185870,181.5,Travel & Subsistence,Administration
HM Land Registry,HM Land Registry,05/07/2017,Travel & Subsistence Overseas Travel,International Relations,Redfern Travel Ltd,SME,1185870,322.42,Travel & Subsistence,Administration
HM Land Registry,HM Land Registry,05/07/2017,Travel & Subsistence General Duty,International Business Development,Redfern Travel Ltd,SME,1185870,417.7,Travel & Subsistence,Administration
HM Land Registry,HM Land Registry,05/07/2017,Travel & Subsistence General Duty,Communications Team,Redfern Travel Ltd,SME,1185870,124.7,Travel & Subsistence,Administration
HM Land Registry,HM Land Registry,05/07/2017,Travel & Subsistence General Duty,Diversity,Redfern Travel Ltd,SME,1185870,31.4,Travel & Subsistence,Administration
HM Land Registry,HM Land Registry,05/07/2017,Travel & Subsistence General Duty,Internal Audit,Redfern Travel Ltd,SME,1185870,77.9,Travel & Subsistence,Administration
HM Land Registry,HM Land Registry,05/07/2017,Travel & Subsistence General Duty,Operations Assurance and Risk,Redfern Travel Ltd,SME,1185870,-68.3,Travel & Subsistence,Administration
HM Land Registry,HM Land Registry,05/07/2017,Travel & Subsistence General Duty,Commercial Services Income,Redfern Travel Ltd,SME,1185870,272.5,Travel & Subsistence,Administration
HM Land Registry,HM Land Registry,05/07/2017,Travel & Subsistence General Duty,Customer Services,Redfern Travel Ltd,SME,1185870,586.29,Travel & Subsistence,Administration
HM Land Registry,HM Land Registry,20/07/2017,Travel & Subsistence General Duty,Birkenhead Office,Redfern Travel Ltd,SME,1187072,-278.8,Travel & Subsistence,Administration
HM Land Registry,HM Land Registry,20/07/2017,Travel & Subsistence General Duty,Business Development,Redfern Travel Ltd,SME,1187072,639.25,Travel & Subsistence,Administration
HM Land Registry,HM Land Registry,20/07/2017,Travel & Subsistence General Duty,Central Facilities Management Team,Redfern Travel Ltd,SME,1187072,"1,337.35",Travel & Subsistence,Administration
HM Land Registry,HM Land Registry,20/07/2017,Travel & Subsistence General Duty,Central Operations Group,Redfern Travel Ltd,SME,1187072,555.35,Travel & Subsistence,Administration
HM Land Registry,HM Land Registry,20/07/2017,Travel & Subsistence General Duty,Chief Executives Office,Redfern Travel Ltd,SME,1187072,841.1,Travel & Subsistence,Administration
HM Land Registry,HM Land Registry,20/07/2017,Travel & Subsistence Overseas Travel,Chief Executives Office,Redfern Travel Ltd,SME,1187072,150.6,Travel & Subsistence,Administration
HM Land Registry,HM Land Registry,20/07/2017,Travel & Subsistence General Duty,Commercial Director,Redfern Travel Ltd,SME,1187072,200.2,Travel & Subsistence,Administration
HM Land Registry,HM Land Registry,20/07/2017,Travel & Subsistence General Duty,Corp Procurement,Redfern Travel Ltd,SME,1187072,203.7,Travel & Subsistence,Administration
HM Land Registry,HM Land Registry,20/07/2017,Travel & Subsistence General Duty,Corporate Assurance,Redfern Travel Ltd,SME,1187072,40.1,Travel & Subsistence,Administration
HM Land Registry,HM Land Registry,20/07/2017,Travel & Subsistence General Duty,Corporate Legal Services,Redfern Travel Ltd,SME,1187072,414.73,Travel & Subsistence,Administration
HM Land Registry,HM Land Registry,20/07/2017,Travel & Subsistence General Duty,Coventry Office,Redfern Travel Ltd,SME,1187072,89.6,Travel & Subsistence,Administration
HM Land Registry,HM Land Registry,20/07/2017,Travel & Subsistence General Duty,Data Group,Redfern Travel Ltd,SME,1187072,618.4,Travel & Subsistence,Administration
HM Land Registry,HM Land Registry,20/07/2017,Travel & Subsistence General Duty,Dir: (Statutory) Digital Services,Redfern Travel Ltd,SME,1187072,905.1,Travel & Subsistence,Administration
HM Land Registry,HM Land Registry,20/07/2017,Travel & Subsistence General Duty,Dir: Operations,Redfern Travel Ltd,SME,1187072,980.15,Travel & Subsistence,Administration
HM Land Registry,HM Land Registry,20/07/2017,Travel & Subsistence General Duty,Director of Information Systems,Redfern Travel Ltd,SME,1187072,"1,942.69",Travel & Subsistence,Administration
HM Land Registry,HM Land Registry,20/07/2017,Travel & Subsistence General Duty,Director of Legal Services,Redfern Travel Ltd,SME,1187072,-232,Travel & Subsistence,Administration
HM Land Registry,HM Land Registry,20/07/2017,Travel & Subsistence Dual Workplace,Director of Legal Services,Redfern Travel Ltd,SME,1187072,237,Travel & Subsistence,Administration
HM Land Registry,HM Land Registry,20/07/2017,Travel & Subsistence General Duty,Director of Operations,Redfern Travel Ltd,SME,1187072,87.95,Travel & Subsistence,Administration
HM Land Registry,HM Land Registry,20/07/2017,Travel & Subsistence General Duty,Durham Office,Redfern Travel Ltd,SME,1187072,149.8,Travel & Subsistence,Administration
HM Land Registry,HM Land Registry,20/07/2017,Travel & Subsistence General Duty,Finance Director,Redfern Travel Ltd,SME,1187072,191.2,Travel & Subsistence,Administration
HM Land Registry,HM Land Registry,20/07/2017,Travel & Subsistence General Duty,Finance Group,Redfern Travel Ltd,SME,1187072,504.7,Travel & Subsistence,Administration
HM Land Registry,HM Land Registry,20/07/2017,Travel & Subsistence General Duty,Fylde Office,Redfern Travel Ltd,SME,1187072,105.3,Travel & Subsistence,Administration
HM Land Registry,HM Land Registry,20/07/2017,Travel & Subsistence General Duty,Gloucester Office,Redfern Travel Ltd,SME,1187072,81.2,Travel & Subsistence,Administration
HM Land Registry,HM Land Registry,20/07/2017,Travel & Subsistence General Duty,Guarantee & Litigation,Redfern Travel Ltd,SME,1187072,101.6,Travel & Subsistence,Administration
HM Land Registry,HM Land Registry,20/07/2017,Travel & Subsistence General Duty,HR Group,Redfern Travel Ltd,SME,1187072,"4,462.84",Travel & Subsistence,Administration
HM Land Registry,HM Land Registry,20/07/2017,Travel & Subsistence General Duty,Hull Office,Redfern Travel Ltd,SME,1187072,242.4,Travel & Subsistence,Administration
HM Land Registry,HM Land Registry,20/07/2017,Travel & Subsistence General Duty,Leicester Office,Redfern Travel Ltd,SME,1187072,124.6,Travel & Subsistence,Administration
HM Land Registry,HM Land Registry,20/07/2017,Travel & Subsistence General Duty,Local Land Charges,Redfern Travel Ltd,SME,1187072,"4,081.06",Travel & Subsistence,Administration
HM Land Registry,HM Land Registry,20/07/2017,Travel & Subsistence General Duty,Local Lawyer Group,Redfern Travel Ltd,SME,1187072,89.5,Travel & Subsistence,Administration
HM Land Registry,HM Land Registry,20/07/2017,Travel & Subsistence General Duty,LR Board & Board Chair,Redfern Travel Ltd,SME,1187072,510.8,Travel & Subsistence,Administration
HM Land Registry,HM Land Registry,20/07/2017,Travel & Subsistence General Duty,Nottingham Office,Redfern Travel Ltd,SME,1187072,344.5,Travel & Subsistence,Administration
HM Land Registry,HM Land Registry,20/07/2017,Travel & Subsistence General Duty,Peterborough Office,Redfern Travel Ltd,SME,1187072,376.6,Travel & Subsistence,Administration
HM Land Registry,HM Land Registry,20/07/2017,Travel & Subsistence General Duty,Product Development & Management,Redfern Travel Ltd,SME,1187072,846.75,Travel & Subsistence,Administration
HM Land Registry,HM Land Registry,20/07/2017,Travel & Subsistence General Duty,Program: Local Land Charges,Redfern Travel Ltd,SME,1187072,"1,012.46",Travel & Subsistence,Administration
HM Land Registry,HM Land Registry,20/07/2017,Travel & Subsistence General Duty,Projects and Programme Centre,Redfern Travel Ltd,SME,1187072,544.4,Travel & Subsistence,Administration
HM Land Registry,HM Land Registry,20/07/2017,Travel & Subsistence General Duty,Property Asset Management Group,Redfern Travel Ltd,SME,1187072,132.2,Travel & Subsistence,Administration
HM Land Registry,HM Land Registry,20/07/2017,Travel & Subsistence General Duty,Research & Data Mining,Redfern Travel Ltd,SME,1187072,689.2,Travel & Subsistence,Administration
HM Land Registry,HM Land Registry,20/07/2017,Travel & Subsistence General Duty,Strategy Team,Redfern Travel Ltd,SME,1187072,893.3,Travel & Subsistence,Administration
HM Land Registry,HM Land Registry,20/07/2017,Travel & Subsistence General Duty,Wales Office,Redfern Travel Ltd,SME,1187072,521.9,Travel & Subsistence,Administration
HM Land Registry,HM Land Registry,20/07/2017,Travel & Subsistence General Duty,Dir: Finance,Redfern Travel Ltd,SME,1187072,"1,884.23",Travel & Subsistence,Administration
HM Land Registry,HM Land Registry,20/07/2017,Travel & Subsistence General Duty,Independent Complaints Reviewer,Redfern Travel Ltd,SME,1187072,219.2,Travel & Subsistence,Administration
HM Land Registry,HM Land Registry,20/07/2017,Travel & Subsistence General Duty,HR Strategy & Policy,Redfern Travel Ltd,SME,1187072,323.1,Travel & Subsistence,Administration
HM Land Registry,HM Land Registry,20/07/2017,Travel & Subsistence Overseas Travel,International Relations,Redfern Travel Ltd,SME,1187072,199.79,Travel & Subsistence,Administration
HM Land Registry,HM Land Registry,20/07/2017,Travel & Subsistence General Duty,International Business Development,Redfern Travel Ltd,SME,1187072,276.4,Travel & Subsistence,Administration
HM Land Registry,HM Land Registry,20/07/2017,Travel & Subsistence General Duty,Communications Team,Redfern Travel Ltd,SME,1187072,659.25,Travel & Subsistence,Administration
HM Land Registry,HM Land Registry,20/07/2017,Travel & Subsistence General Duty,Diversity,Redfern Travel Ltd,SME,1187072,278.8,Travel & Subsistence,Administration
HM Land Registry,HM Land Registry,20/07/2017,Travel & Subsistence General Duty,Internal Audit,Redfern Travel Ltd,SME,1187072,-113.6,Travel & Subsistence,Administration
HM Land Registry,HM Land Registry,20/07/2017,Travel & Subsistence General Duty,Customer Services,Redfern Travel Ltd,SME,1187072,"1,292.72",Travel & Subsistence,Administration
HM Land Registry,HM Land Registry,20/07/2017,Travel & Subsistence General Duty,Birkenhead Office,Redfern Travel Ltd,SME,1187073,1.2,Travel & Subsistence,Administration
HM Land Registry,HM Land Registry,20/07/2017,Travel & Subsistence General Duty,Business Development,Redfern Travel Ltd,SME,1187073,671.79,Travel & Subsistence,Administration
HM Land Registry,HM Land Registry,20/07/2017,Travel & Subsistence General Duty,Central Facilities Management Team,Redfern Travel Ltd,SME,1187073,"1,024.86",Travel & Subsistence,Administration
HM Land Registry,HM Land Registry,20/07/2017,Travel & Subsistence General Duty,Central Operations Group,Redfern Travel Ltd,SME,1187073,855.3,Travel & Subsistence,Administration
HM Land Registry,HM Land Registry,20/07/2017,Travel & Subsistence General Duty,Chief Executives Office,Redfern Travel Ltd,SME,1187073,993.03,Travel & Subsistence,Administration
HM Land Registry,HM Land Registry,20/07/2017,Travel & Subsistence General Duty,Commercial Director,Redfern Travel Ltd,SME,1187073,102.1,Travel & Subsistence,Administration
HM Land Registry,HM Land Registry,20/07/2017,Travel & Subsistence General Duty,Corp Procurement,Redfern Travel Ltd,SME,1187073,668.95,Travel & Subsistence,Administration
HM Land Registry,HM Land Registry,20/07/2017,Travel & Subsistence Dual Workplace,Corp Procurement,Redfern Travel Ltd,SME,1187073,137.2,Travel & Subsistence,Administration
HM Land Registry,HM Land Registry,20/07/2017,Travel & Subsistence General Duty,Corporate Legal Services,Redfern Travel Ltd,SME,1187073,931.9,Travel & Subsistence,Administration
HM Land Registry,HM Land Registry,20/07/2017,Travel & Subsistence General Duty,Croydon Office,Redfern Travel Ltd,SME,1187073,74.5,Travel & Subsistence,Administration
HM Land Registry,HM Land Registry,20/07/2017,Travel & Subsistence General Duty,Data Group,Redfern Travel Ltd,SME,1187073,153.35,Travel & Subsistence,Administration
HM Land Registry,HM Land Registry,20/07/2017,Travel & Subsistence General Duty,Dir: (Statutory) Digital Services,Redfern Travel Ltd,SME,1187073,521.2,Travel & Subsistence,Administration
HM Land Registry,HM Land Registry,20/07/2017,Travel & Subsistence General Duty,Dir: Operations,Redfern Travel Ltd,SME,1187073,"1,376.85",Travel & Subsistence,Administration
HM Land Registry,HM Land Registry,20/07/2017,Travel & Subsistence General Duty,Director of Information Systems,Redfern Travel Ltd,SME,1187073,754.83,Travel & Subsistence,Administration
HM Land Registry,HM Land Registry,20/07/2017,Travel & Subsistence General Duty,Director of Legal Services,Redfern Travel Ltd,SME,1187073,78.07,Travel & Subsistence,Administration
HM Land Registry,HM Land Registry,20/07/2017,Travel & Subsistence General Duty,Director of Operations,Redfern Travel Ltd,SME,1187073,71.2,Travel & Subsistence,Administration
HM Land Registry,HM Land Registry,20/07/2017,Travel & Subsistence General Duty,Durham Office,Redfern Travel Ltd,SME,1187073,"2,042.25",Travel & Subsistence,Administration
HM Land Registry,HM Land Registry,20/07/2017,Travel & Subsistence General Duty,Finance Director,Redfern Travel Ltd,SME,1187073,17.5,Travel & Subsistence,Administration
HM Land Registry,HM Land Registry,20/07/2017,Travel & Subsistence General Duty,Finance Group,Redfern Travel Ltd,SME,1187073,340.6,Travel & Subsistence,Administration
HM Land Registry,HM Land Registry,20/07/2017,Travel & Subsistence General Duty,Fylde Office,Redfern Travel Ltd,SME,1187073,381.35,Travel & Subsistence,Administration
HM Land Registry,HM Land Registry,20/07/2017,Travel & Subsistence General Duty,HR Group,Redfern Travel Ltd,SME,1187073,"3,949.21",Travel & Subsistence,Administration
HM Land Registry,HM Land Registry,20/07/2017,Travel & Subsistence General Duty,Hull Office,Redfern Travel Ltd,SME,1187073,0.6,Travel & Subsistence,Administration
HM Land Registry,HM Land Registry,20/07/2017,Travel & Subsistence General Duty,Leicester Office,Redfern Travel Ltd,SME,1187073,15,Travel & Subsistence,Administration
HM Land Registry,HM Land Registry,20/07/2017,Travel & Subsistence General Duty,Local Land Charges,Redfern Travel Ltd,SME,1187073,"3,297.95",Travel & Subsistence,Administration
HM Land Registry,HM Land Registry,20/07/2017,Travel & Subsistence General Duty,Local Lawyer Group,Redfern Travel Ltd,SME,1187073,364.3,Travel & Subsistence,Administration
HM Land Registry,HM Land Registry,20/07/2017,Travel & Subsistence Overseas Travel,Local Lawyer Group,Redfern Travel Ltd,SME,1187073,113.9,Travel & Subsistence,Administration
HM Land Registry,HM Land Registry,20/07/2017,Travel & Subsistence General Duty,Nottingham Office,Redfern Travel Ltd,SME,1187073,23.5,Travel & Subsistence,Administration
HM Land Registry,HM Land Registry,20/07/2017,Travel & Subsistence General Duty,Peterborough Office,Redfern Travel Ltd,SME,1187073,75.3,Travel & Subsistence,Administration
HM Land Registry,HM Land Registry,20/07/2017,Travel & Subsistence General Duty,Product Development & Management,Redfern Travel Ltd,SME,1187073,615,Travel & Subsistence,Administration
HM Land Registry,HM Land Registry,20/07/2017,Travel & Subsistence General Duty,Program: Local Land Charges,Redfern Travel Ltd,SME,1187073,613.34,Travel & Subsistence,Administration
HM Land Registry,HM Land Registry,20/07/2017,Travel & Subsistence General Duty,Projects and Programme Centre,Redfern Travel Ltd,SME,1187073,87.5,Travel & Subsistence,Administration
HM Land Registry,HM Land Registry,20/07/2017,Travel & Subsistence General Duty,Property Asset Management Group,Redfern Travel Ltd,SME,1187073,213.5,Travel & Subsistence,Administration
HM Land Registry,HM Land Registry,20/07/2017,Travel & Subsistence General Duty,Research & Data Mining,Redfern Travel Ltd,SME,1187073,300.7,Travel & Subsistence,Administration
HM Land Registry,HM Land Registry,20/07/2017,Travel & Subsistence General Duty,Strategy Team,Redfern Travel Ltd,SME,1187073,729.7,Travel & Subsistence,Administration
HM Land Registry,HM Land Registry,20/07/2017,Travel & Subsistence General Duty,Wales Office,Redfern Travel Ltd,SME,1187073,"1,130.40",Travel & Subsistence,Administration
HM Land Registry,HM Land Registry,20/07/2017,Travel & Subsistence General Duty,Weymouth Office,Redfern Travel Ltd,SME,1187073,85.6,Travel & Subsistence,Administration
HM Land Registry,HM Land Registry,20/07/2017,Travel & Subsistence General Duty,Dir: Finance,Redfern Travel Ltd,SME,1187073,"2,779.86",Travel & Subsistence,Administration
HM Land Registry,HM Land Registry,20/07/2017,Travel & Subsistence General Duty,HR Operations,Redfern Travel Ltd,SME,1187073,116.4,Travel & Subsistence,Administration
HM Land Registry,HM Land Registry,20/07/2017,Travel & Subsistence General Duty,HR Strategy & Policy,Redfern Travel Ltd,SME,1187073,164,Travel & Subsistence,Administration
HM Land Registry,HM Land Registry,20/07/2017,Travel & Subsistence General Duty,Dir: Information Systems,Redfern Travel Ltd,SME,1187073,275.6,Travel & Subsistence,Administration
HM Land Registry,HM Land Registry,20/07/2017,Travel & Subsistence General Duty,International Business Development,Redfern Travel Ltd,SME,1187073,478.38,Travel & Subsistence,Administration
HM Land Registry,HM Land Registry,20/07/2017,Travel & Subsistence General Duty,Communications Team,Redfern Travel Ltd,SME,1187073,668.45,Travel & Subsistence,Administration
HM Land Registry,HM Land Registry,20/07/2017,Travel & Subsistence General Duty,Diversity,Redfern Travel Ltd,SME,1187073,188.02,Travel & Subsistence,Administration
HM Land Registry,HM Land Registry,20/07/2017,Travel & Subsistence General Duty,Internal Audit,Redfern Travel Ltd,SME,1187073,213.4,Travel & Subsistence,Administration
HM Land Registry,HM Land Registry,20/07/2017,Travel & Subsistence General Duty,Operations Assurance and Risk,Redfern Travel Ltd,SME,1187073,351.1,Travel & Subsistence,Administration
HM Land Registry,HM Land Registry,20/07/2017,Travel & Subsistence General Duty,Customer Services,Redfern Travel Ltd,SME,1187073,"1,058.18",Travel & Subsistence,Administration
HM Land Registry,HM Land Registry,20/07/2017,Travel & Subsistence General Duty,Local Lawyer Support Group,Redfern Travel Ltd,SME,1187073,343.79,Travel & Subsistence,Administration
HM Land Registry,HM Land Registry,20/07/2017,Travel & Subsistence General Duty,Dir: Legal Services,Redfern Travel Ltd,SME,1187073,275.6,Travel & Subsistence,Administration
HM Land Registry,HM Land Registry,20/07/2017,Travel & Subsistence General Duty,Dir: Strategy,Redfern Travel Ltd,SME,1187073,65.6,Travel & Subsistence,Administration
HM Land Registry,HM Land Registry,28/07/2017,Travel & Subsistence General Duty,Business Development,Redfern Travel Ltd,SME,1188012,639.8,Travel & Subsistence,Administration
HM Land Registry,HM Land Registry,28/07/2017,Travel & Subsistence General Duty,Central Facilities Management Team,Redfern Travel Ltd,SME,1188012,"1,069.80",Travel & Subsistence,Administration
HM Land Registry,HM Land Registry,28/07/2017,Travel & Subsistence General Duty,Central Operations Group,Redfern Travel Ltd,SME,1188012,"1,394.72",Travel & Subsistence,Administration
HM Land Registry,HM Land Registry,28/07/2017,Travel & Subsistence General Duty,Chief Executives Office,Redfern Travel Ltd,SME,1188012,379.65,Travel & Subsistence,Administration
HM Land Registry,HM Land Registry,28/07/2017,Travel & Subsistence General Duty,Commercial Director,Redfern Travel Ltd,SME,1188012,-121.3,Travel & Subsistence,Administration
HM Land Registry,HM Land Registry,28/07/2017,Travel & Subsistence General Duty,Corp Procurement,Redfern Travel Ltd,SME,1188012,910.26,Travel & Subsistence,Administration
HM Land Registry,HM Land Registry,28/07/2017,Travel & Subsistence General Duty,Corporate Legal Services,Redfern Travel Ltd,SME,1188012,530.8,Travel & Subsistence,Administration
HM Land Registry,HM Land Registry,28/07/2017,Travel & Subsistence General Duty,Coventry Office,Redfern Travel Ltd,SME,1188012,44.8,Travel & Subsistence,Administration
HM Land Registry,HM Land Registry,28/07/2017,Travel & Subsistence General Duty,Croydon Office,Redfern Travel Ltd,SME,1188012,250.4,Travel & Subsistence,Administration
HM Land Registry,HM Land Registry,28/07/2017,Travel & Subsistence General Duty,Data Group,Redfern Travel Ltd,SME,1188012,722.7,Travel & Subsistence,Administration
HM Land Registry,HM Land Registry,28/07/2017,Travel & Subsistence General Duty,Dir: (Statutory) Digital Services,Redfern Travel Ltd,SME,1188012,714.3,Travel & Subsistence,Administration
HM Land Registry,HM Land Registry,28/07/2017,Travel & Subsistence General Duty,Dir: Operations,Redfern Travel Ltd,SME,1188012,915.88,Travel & Subsistence,Administration
HM Land Registry,HM Land Registry,28/07/2017,Travel & Subsistence General Duty,Director of Information Systems,Redfern Travel Ltd,SME,1188012,"2,027.46",Travel & Subsistence,Administration
HM Land Registry,HM Land Registry,28/07/2017,Travel & Subsistence General Duty,Director of Legal Services,Redfern Travel Ltd,SME,1188012,-564.4,Travel & Subsistence,Administration
HM Land Registry,HM Land Registry,28/07/2017,Travel & Subsistence General Duty,Durham Office,Redfern Travel Ltd,SME,1188012,"1,110.25",Travel & Subsistence,Administration
HM Land Registry,HM Land Registry,28/07/2017,Travel & Subsistence General Duty,Finance Group,Redfern Travel Ltd,SME,1188012,327.44,Travel & Subsistence,Administration
HM Land Registry,HM Land Registry,28/07/2017,Travel & Subsistence General Duty,Guarantee & Litigation,Redfern Travel Ltd,SME,1188012,157.2,Travel & Subsistence,Administration
HM Land Registry,HM Land Registry,28/07/2017,Travel & Subsistence General Duty,HR Group,Redfern Travel Ltd,SME,1188012,"3,024.93",Travel & Subsistence,Administration
HM Land Registry,HM Land Registry,28/07/2017,Travel & Subsistence General Duty,Hull Office,Redfern Travel Ltd,SME,1188012,307.4,Travel & Subsistence,Administration
HM Land Registry,HM Land Registry,28/07/2017,Travel & Subsistence General Duty,Leicester Office,Redfern Travel Ltd,SME,1188012,66.9,Travel & Subsistence,Administration
HM Land Registry,HM Land Registry,28/07/2017,Travel & Subsistence General Duty,Local Land Charges,Redfern Travel Ltd,SME,1188012,"3,013.32",Travel & Subsistence,Administration
HM Land Registry,HM Land Registry,28/07/2017,Travel & Subsistence General Duty,Local Lawyer Group,Redfern Travel Ltd,SME,1188012,951.05,Travel & Subsistence,Administration
HM Land Registry,HM Land Registry,28/07/2017,Travel & Subsistence General Duty,Marketing Services Team,Redfern Travel Ltd,SME,1188012,24.6,Travel & Subsistence,Administration
HM Land Registry,HM Land Registry,28/07/2017,Travel & Subsistence General Duty,Nottingham Office,Redfern Travel Ltd,SME,1188012,248.06,Travel & Subsistence,Administration
HM Land Registry,HM Land Registry,28/07/2017,Travel & Subsistence General Duty,Peterborough Office,Redfern Travel Ltd,SME,1188012,67,Travel & Subsistence,Administration
HM Land Registry,HM Land Registry,28/07/2017,Travel & Subsistence General Duty,Plymouth Office,Redfern Travel Ltd,SME,1188012,60.5,Travel & Subsistence,Administration
HM Land Registry,HM Land Registry,28/07/2017,Travel & Subsistence General Duty,Product Development & Management,Redfern Travel Ltd,SME,1188012,441,Travel & Subsistence,Administration
HM Land Registry,HM Land Registry,28/07/2017,Travel & Subsistence General Duty,Program: Local Land Charges,Redfern Travel Ltd,SME,1188012,"1,092.33",Travel & Subsistence,Administration
HM Land Registry,HM Land Registry,28/07/2017,Travel & Subsistence General Duty,Projects and Programme Centre,Redfern Travel Ltd,SME,1188012,52.35,Travel & Subsistence,Administration
HM Land Registry,HM Land Registry,28/07/2017,Travel & Subsistence General Duty,Property Asset Management Group,Redfern Travel Ltd,SME,1188012,248.7,Travel & Subsistence,Administration
HM Land Registry,HM Land Registry,28/07/2017,Travel & Subsistence General Duty,Research & Data Mining,Redfern Travel Ltd,SME,1188012,406.3,Travel & Subsistence,Administration
HM Land Registry,HM Land Registry,28/07/2017,Travel & Subsistence General Duty,Strategy Team,Redfern Travel Ltd,SME,1188012,973.03,Travel & Subsistence,Administration
HM Land Registry,HM Land Registry,28/07/2017,Travel & Subsistence General Duty,Telford Office,Redfern Travel Ltd,SME,1188012,64.5,Travel & Subsistence,Administration
HM Land Registry,HM Land Registry,28/07/2017,Travel & Subsistence General Duty,Wales Office,Redfern Travel Ltd,SME,1188012,71.9,Travel & Subsistence,Administration
HM Land Registry,HM Land Registry,28/07/2017,Travel & Subsistence General Duty,Weymouth Office,Redfern Travel Ltd,SME,1188012,166.6,Travel & Subsistence,Administration
HM Land Registry,HM Land Registry,28/07/2017,Travel & Subsistence General Duty,Dir: Finance,Redfern Travel Ltd,SME,1188012,"1,750.03",Travel & Subsistence,Administration
HM Land Registry,HM Land Registry,28/07/2017,Travel & Subsistence General Duty,Registration Legal Services Group,Redfern Travel Ltd,SME,1188012,81,Travel & Subsistence,Administration
HM Land Registry,HM Land Registry,28/07/2017,Travel & Subsistence General Duty,HR Strategy & Policy,Redfern Travel Ltd,SME,1188012,159.1,Travel & Subsistence,Administration
HM Land Registry,HM Land Registry,28/07/2017,Travel & Subsistence General Duty,Dir: Information Systems,Redfern Travel Ltd,SME,1188012,87.6,Travel & Subsistence,Administration
HM Land Registry,HM Land Registry,28/07/2017,Travel & Subsistence General Duty,International Business Development,Redfern Travel Ltd,SME,1188012,312.25,Travel & Subsistence,Administration
HM Land Registry,HM Land Registry,28/07/2017,Travel & Subsistence General Duty,Communications Team,Redfern Travel Ltd,SME,1188012,250.42,Travel & Subsistence,Administration
HM Land Registry,HM Land Registry,28/07/2017,Travel & Subsistence General Duty,Diversity,Redfern Travel Ltd,SME,1188012,432.2,Travel & Subsistence,Administration
HM Land Registry,HM Land Registry,28/07/2017,Travel & Subsistence General Duty,Internal Audit,Redfern Travel Ltd,SME,1188012,238.6,Travel & Subsistence,Administration
HM Land Registry,HM Land Registry,28/07/2017,Travel & Subsistence General Duty,Operations Assurance and Risk,Redfern Travel Ltd,SME,1188012,"1,099.75",Travel & Subsistence,Administration
HM Land Registry,HM Land Registry,28/07/2017,Travel & Subsistence General Duty,Customer Services,Redfern Travel Ltd,SME,1188012,567.79,Travel & Subsistence,Administration
HM Land Registry,HM Land Registry,28/07/2017,Travel & Subsistence General Duty,Local Lawyer Support Group,Redfern Travel Ltd,SME,1188012,72.1,Travel & Subsistence,Administration
HM Land Registry,HM Land Registry,28/07/2017,Travel & Subsistence General Duty,Dir: Legal Services,Redfern Travel Ltd,SME,1188012,180.6,Travel & Subsistence,Administration
HM Land Registry,HM Land Registry,18/07/2017,Letter Post,Birkenhead Office,Royal Mail,Large,1186824,"2,010.27",Letter Post,Administration
HM Land Registry,HM Land Registry,18/07/2017,Letter Post,Coventry Office,Royal Mail,Large,1186824,"1,527.89",Letter Post,Administration
HM Land Registry,HM Land Registry,18/07/2017,Letter Post,Croydon Office,Royal Mail,Large,1186824,"5,377.26",Letter Post,Administration
HM Land Registry,HM Land Registry,18/07/2017,Letter Post,Durham Office,Royal Mail,Large,1186824,"5,219.95",Letter Post,Administration
HM Land Registry,HM Land Registry,18/07/2017,Letter Post,Fylde Office,Royal Mail,Large,1186824,"4,286.39",Letter Post,Administration
HM Land Registry,HM Land Registry,18/07/2017,Letter Post,Gloucester Office,Royal Mail,Large,1186824,"1,641.74",Letter Post,Administration
HM Land Registry,HM Land Registry,18/07/2017,Letter Post,Hull Office,Royal Mail,Large,1186824,"2,343.81",Letter Post,Administration
HM Land Registry,HM Land Registry,18/07/2017,Letter Post,IS Service Delivery,Royal Mail,Large,1186824,"23,197.39",Letter Post,Administration
HM Land Registry,HM Land Registry,18/07/2017,Letter Post,Land Charges,Royal Mail,Large,1186824,781.89,Letter Post,Administration
HM Land Registry,HM Land Registry,18/07/2017,Letter Post,Leicester Office,Royal Mail,Large,1186824,"1,645.34",Letter Post,Administration
HM Land Registry,HM Land Registry,18/07/2017,Letter Post,Nottingham Office,Royal Mail,Large,1186824,"2,254.36",Letter Post,Administration
HM Land Registry,HM Land Registry,18/07/2017,Letter Post,Peterborough Office,Royal Mail,Large,1186824,"1,938.22",Letter Post,Administration
HM Land Registry,HM Land Registry,18/07/2017,Letter Post,Plymouth Office,Royal Mail,Large,1186824,"2,345.68",Letter Post,Administration
HM Land Registry,HM Land Registry,18/07/2017,Letter Post,Telford Office,Royal Mail,Large,1186824,"1,092.89",Letter Post,Administration
HM Land Registry,HM Land Registry,18/07/2017,Letter Post,Wales Office,Royal Mail,Large,1186824,"14,440.27",Letter Post,Administration
HM Land Registry,HM Land Registry,18/07/2017,Letter Post,Weymouth Office,Royal Mail,Large,1186824,"1,581.01",Letter Post,Administration
HM Land Registry,HM Land Registry,17/07/2017,Assets in the Course of Construction,Balance Sheet,Software Box Ltd,SME,1186724,"117,327.46",Assets in the Course of Construction,Administration
HM Land Registry,HM Land Registry,17/07/2017,Computer Equipment Maintenance,IS Service Delivery,Software Box Ltd,SME,1186724,"37,087.95",Computer Equipment Maintenance,Administration
HM Land Registry,HM Land Registry,27/07/2017,Rates Payable,Director of Information Systems,South Hams District Council,Large,1175825,"7,837.00",Rates Payable,Administration
HM Land Registry,HM Land Registry,27/07/2017,Rates Payable,Director of Information Systems,South Hams District Council,Large,1175824,"4,503.00",Rates Payable,Administration
HM Land Registry,HM Land Registry,12/07/2017,Software as a Service (Cloud),IS Service Delivery,Specialist Computer Centres Plc - SCC,Large,1186100,"88,967.59",Cloud Computing Services,Administration
HM Land Registry,HM Land Registry,27/07/2017,Rates Payable,Telford Office,Telford & Wrekin Council,Large,1176072,"26,106.00",Rates Payable,Administration
HM Land Registry,HM Land Registry,27/07/2017,Rates Payable,Gloucester Computer Centre,Tewkesbury Borough Council,Large,1174831,"11,615.00",Rates Payable,Administration
HM Land Registry,HM Land Registry,05/07/2017,Rates Payable,Weymouth Office,West Dorset District Council,Large,1176979,"4,934.00",Rates Payable,Administration
HM Land Registry,HM Land Registry,05/07/2017,Rates Payable,Weymouth Office,West Dorset District Council,Large,1176980,"5,221.00",Rates Payable,Administration
HM Land Registry,HM Land Registry,03/07/2017,Rates Payable,Birkenhead Office,Wirral Council,Large,1176876,"27,484.00",Rates Payable,Administration
HM Land Registry,HM Land Registry,07/07/2017,Maps & Plans Data Migration,Forward Scanning,Xerox (UK) Ltd,Large,1186019,"103,087.43",Maps & Plans Data Migration,Administration
HM Land Registry,HM Land Registry,07/07/2017,Assets in the Course of Construction,Balance Sheet,XMA Limited,Large,1186017,"189,082.81",Assets in the Course of Construction,Administration
